Cogmind - Beta 15 @@@ ROGUE MODE // 2025.05.13 @ 19:49:01 Player: Epsilon 11 Result: Destroyed by ZR-Q5P(R) with Subdweller Machine Gun Performance ------------- Evolutions (0) 0 Regions Visited (3) 600 Robots Destroyed (20) 100 Value Destroyed (414) 414 Prototype IDs (0) 0 Alien Tech Used (0) 0 Bonus (0) 0 TOTAL SCORE: 1114 Bonus ------- None Cogmind --------- Core Integrity 0/250 Matter 269/300 Energy 100/100 System Corruption 0% Temperature Cool (0) Movement Rolling (100) Location -10/Subcaves Parts ------- > --- POWER (1) -------- (None) > --- PROPULSION (2) --- Compact Wheel > --- UTILITY (2) ------ Small Storage Unit Structural Scanner > --- WEAPON (2) ------- Heavy Assault Rifle > --- INVENTORY (8) ---- Subdweller Monowheel Seismic Detector Subdweller Laser Light Assault Rifle Grenade Launcher Datajack Hammer Peak State ------------ > --- POWER ------------ Light Ion Engine > --- PROPULSION ------- Compact Wheel Compact Wheel > --- UTILITY ---------- Small Storage Unit Structural Scanner > --- WEAPON ----------- EM Pulse Gun Subdweller Laser > --- INVENTORY -------- Compact Wheel Seismic Detector EM Pulse Gun Light Assault Rifle Grenade Launcher Datajack Hammer [Rating: 8] Favorites ----------- Power Light Ion Engine Engine Light Ion Engine Propulsion Compact Wheel Wheel Compact Wheel Utility Small Storage Unit Device Structural Scanner Storage Small Storage Unit Weapon EM Pulse Gun Energy Gun EM Pulse Gun Ballistic Gun Light Assault Rifle Launcher Grenade Launcher Impact Weapon Hammer Build | -11 -10 -10 -10 ------- Run | Yrd Mat Min Sub Slots Evolved . | . . . . Power . | . . . . Propulsion . | . . . . Utility . | . . . . Weapon . | . . . . Parts Attached 19 | 6 9 1 3 Power 2 | 1 . 1 . Engine 2 | 1 . 1 . Core . | . . . . Reactor . | . . . . Propulsion 5 | 2 2 . 1 Treads . | . . . . Leg . | . . . . Wheel 5 | 2 2 . 1 Hover . | . . . . Flight . | . . . . Utility 3 | 1 2 . . Device 2 | . 2 . . Storage 1 | 1 . . . Processor . | . . . . Hackware . | . . . . Protection . | . . . . Artifact . | . . . . Weapon 9 | 2 5 . 2 Energy Gun 5 | 1 3 . 1 Energy Cannon . | . . . . Ballistic Gun 2 | 1 . . 1 Ballistic Cannon . | . . . . Launcher 1 | . 1 . . Special Weapon . | . . . . Impact Weapon 1 | . 1 . . Slashing Weapon . | . . . . Piercing Weapon . | . . . . Special Melee Weapon . | . . . . Unidentified Prototypes . | . . . . Parts Lost 7 | . 1 1 5 Power 2 | . . 1 1 Propulsion 2 | . . . 2 Utility . | . . . . Weapon 3 | . 1 . 2 Highest Loss Streak 4 | . 1 1 4 To Critical Strikes . | . . . . Average Backups 7 | . 7 6 7 Power . | . 1 . . Propulsion 1 | . . 1 1 Utility . | . . 1 1 Weapon 3 | . 4 3 4 Tool/Special . | . . . . Unused Backups 3 | . . . 3 Power . | . . . . Propulsion 2 | . . . 2 Utility . | . . . . Weapon . | . . . . Tool/Special 1 | . . . 1 Average Slot Usage (%) 97 | . 95 98 98 Engine 13 | . 14 13 13 Wheel 27 | . 28 28 27 Device 12 | . 10 14 14 Storage 14 | . 14 14 14 Energy Gun 13 | . 13 28 11 Ballistic Gun 4 | . 8 . 1 Launcher 5 | . 3 . 7 Impact Weapon 4 | . 1 . 7 Peak Build Rating 8 | 6 7 7 8 Average Rating 7 | 4 6 6 7 On Entrance 5 | . 6 7 7 Naked Turns . | . . . . Heaviest Build 16 | 10 14 13 16 Greatest Support 32 | 20 32 32 32 Greatest Overweight (x) . | . . . . Average Overweight (x) . | . . . . Largest Inventory Capacity 8 | 8 8 8 8 Average Capacity 7 | 7 8 8 8 Most Carried 8 | 2 8 7 8 Average Carried 7 | . 7 6 7 Final Capacity 8 | 8 8 8 8 Final Carried 7 | 2 7 6 7 Class Distribution -------------------- 100% | Mutant Dominant Class ---------------- Mutant | -10/Materials Mutant | -10/Mines Mutant | -10/Subcaves Resources | -11 -10 -10 -10 ----------- Run | Yrd Mat Min Sub Matter Collected 569 | 239 78 98 154 Remotely . | . . . . Salvage Created 497 | . 244 98 155 Parts 38 | . 27 5 6 Haulers Intercepted 1 | . 1 . . Recyclers Shooed 1 | . . 1 . Parts Field Recycled . | . . . . Retrieved Matter . | . . . . Parts Self-Destructed 15 | . . . 15 Prevented 1 | . . . 1 Kills | -11 -10 -10 -10 ------- Run | Yrd Mat Min Sub Combat Hostiles Destroyed 17 | . 11 2 4 Guns 9 | . 5 2 2 AOE 8 | . 6 . 2 Classes Destroyed 7 | . 5 . 2 Worker 1 | . 1 . . Tunneler 1 | . 1 . . Hauler 1 | . 1 . . Swarmer 9 | . 9 . . Grunt 4 | . 2 2 . Sentry 1 | . . . 1 Subdweller 3 | . . . 3 Best Kill Streak 4 | . 4 2 2 Combat Bots Only 3 | . 3 2 2 Max Kills in Single Turn 3 | . 3 1 1 Gunslinging 1 | . 1 . . Exploded 3 | . 3 . 1 Melee . | . . . . Uniques/NPCs Destroyed . | . . . . Combat | -11 -10 -10 -10 -------- Run | Yrd Mat Min Sub Hostile Shots Fired 83 | . 32 4 47 Missed 24 | . 7 . 17 Hits 59 | . 25 4 30 Projectile 59 | . 25 4 30 Critical Strikes 2 | . 1 . 1 Damage Taken 990 | . 293 50 647 Core 254 | . 18 12 224 Absorbed by Shields . | . . . . Core Remaining (%) 100 | 100 . . . Volleys Fired 57 | . 31 6 20 Largest 2 | . 2 2 2 Hottest 90 | . 80 80 90 Shots Fired 93 | . 51 12 30 Gun 82 | . 45 12 25 Cannon . | . . . . Launcher 11 | . 6 . 5 Special . | . . . . Kinetic 26 | . 17 . 9 Thermal 25 | . 22 . 3 Explosive 11 | . 6 . 5 Electromagnetic 31 | . 6 12 13 Robot Hit Streak 19 | . 4 13 19 Robot Miss Streak 4 | . 4 2 1 Penetration Max . | . . . . Secondary Targets 2 | . 2 . . Max Gunslinging Chain 1 | . 1 . . Shots Hit Robots 62 | . 26 10 26 Core Hits 35 | . 21 5 9 Critical Kills 1 | . 1 . . Critical Parts Destroyed . | . . . . Critical Strikes 3 | . 2 . 1 Burn 1 | . 1 . . Destroy 1 | . . . 1 Smash 1 | . 1 . . Melee Attacks 26 | . 5 . 21 Impact 26 | . 5 . 21 Slashing . | . . . . Piercing . | . . . . Sneak Attacks 1 | . 1 . . Combat Hostiles . | . . . . Follow-up Attacks . | . . . . Damage Inflicted 1275 | . 584 144 547 Guns 697 | . 267 144 286 Cannons . | . . . . Explosions 516 | . 255 . 261 Melee 62 | . 62 . . Ramming . | . . . . Kinetic 162 | . 65 . 97 Thermal 220 | . 154 . 66 Explosive 516 | . 255 . 261 Electromagnetic 315 | . 48 144 123 Impact 62 | . 62 . . Slashing . | . . . . Piercing . | . . . . Highest Corruption . | . . . . Average Corruption . | . . . . Corruption Purged . | . . . . Corruption Blocked . | . . . . Overload Shots . | . . . . Overflow Damage 20 | . 20 . . Projectiles . | . . . . Explosions 20 | . 20 . . Melee . | . . . . Knockbacks . | . . . . Impact . | . . . . Kinetic . | . . . . Secondary . | . . . . Self-Inflicted Damage 70 | . 70 . . Shots 3 | . 3 . . Rammed . | . . . . Targets Rammed . | . . . . Kicked . | . . . . Crushed . | . . . . Highest Temperature 62 | . 62 46 . Average Temperature 22 | . 22 22 . Received Heat Transfer 81 | . 36 27 18 Siege Activations . | . . . . Martial Activations . | . . . . Shielding Activations . | . . . . Robots Disrupted . | . . . . Combat Hostiles . | . . . . Robots Corrupted . | . . . . Combat Hostiles . | . . . . Parts Fried 1 | . . 1 . Impact Corruptions . | . . . . Robots Melted . | . . . . Combat Hostiles . | . . . . Parts Melted . | . . . . Heat Transferred 558 | . 483 . 75 Parts Sabotaged . | . . . . Parts Stolen . | . . . . Parts Stripped . | . . . . Power Chain Reactions . | . . . . Alert | -11 -10 -10 -10 ------- Run | Yrd Mat Min Sub Maximum Alert Level . | . . . . Low Security (%) 100 | 100 100 100 . Level 1 . | . . . . Level 2 . | . . . . Level 3 . | . . . . Level 4 . | . . . . Level 5 . | . . . . High Security . | . . . . Max Security . | . . . . Peak Influence 145 | . 145 71 . Initial 31 | . . 31 . Average 53 | . 57 41 . Influence Increases 452 | . 382 50 20 Destroy 0b10 Robot/C 280 | . 220 40 20 Destroy 0b10 Robot/NC 15 | . 15 . . Destroy Leader 52 | . 42 10 . Successful Hack 11 | . 11 . . Destroy Structure 49 | . 49 . . Lose Combat Pursuer 45 | . 45 . . Influence Decreases 452 | . 301 120 31 Entered New Map 57 | . . 50 7 Time Decay 375 | . 291 60 24 Lost Part 20 | . 10 10 . Squads Dispatched 3 | . 3 . . Investigation . | . . . . Extermination . | . . . . Reinforcement 3 | . 3 . . Assault . | . . . . Garrison . | . . . . Intercept . | . . . . Searches Triggered . | . . . . Construction Impeded . | . . . . Haulers Reinforced . | . . . . Active Scanning Responses . | . . . . Cargo Convoy Interrupts . | . . . . Stealth | -11 -10 -10 -10 --------- Run | Yrd Mat Min Sub Distress Signals 3 | . 3 . . Communications Jammed . | . . . . Distress Signals . | . . . . Times Spotted 31 | . 23 2 6 Peak Tracking Total 7 | . 7 2 2 Tactical Retreats 3 | . 3 . . Traps | -11 -10 -10 -10 ------- Run | Yrd Mat Min Sub Traps Triggered . | . . . . Indirectly . | . . . . Trap Hack Attempts . | . . . . Triggered . | . . . . Disarmed . | . . . . Reprogrammed . | . . . . Reused . | . . . . Traps Extracted . | . . . . Installed . | . . . . Triggered . | . . . . Machines | -11 -10 -10 -10 ---------- Run | Yrd Mat Min Sub Machines Disabled . | . . . . Max in Single Turn . | . . . . Machines Repaired . | . . . . Machines Dismantled . | . . . . Machines Sabotaged . | . . . . Overloaded Fab Kills . | . . . . Hacking | -11 -10 -10 -10 --------- Run | Yrd Mat Min Sub Machines Accessed 7 | . 6 . 1 Terminals 6 | . 6 . . Fabricators . | . . . . Repair Stations . | . . . . Recycling Units . | . . . . Scanalyzers . | . . . . Garrison Access . | . . . . Total Hacks 23 | . 20 . 3 Successful 16 | . 13 . 3 Failed 7 | . 7 . . Catastrophic . | . . . . Database Lockouts . | . . . . Manual 16 | . 16 . . Terminals 20 | . 20 . . Fabricators . | . . . . Repair Stations . | . . . . Recycling Units . | . . . . Scanalyzers . | . . . . Garrison Access . | . . . . Terminal Hacks 5 | . 2 . 3 Record 3 | . . . 3 Terminal Index 1 | . 1 . . Recall Reinforcements 1 | . 1 . . Fabricator Hacks . | . . . . Repair Station Hacks . | . . . . Recycling Unit Hacks . | . . . . Scanalyzer . | . . . . Garrison Access Hacks . | . . . . Unauthorized Hacks 11 | . 11 . . Terminals 11 | . 11 . . Botnet 5 | . 5 . . Skim 6 | . 6 . . Fabricators . | . . . . Repair Stations . | . . . . Recycling Units . | . . . . Scanalyzers . | . . . . Garrison Access . | . . . . Data Cores Recovered . | . . . . Used . | . . . . Hacking Detections 6 | . 6 . . Full Trace Events . | . . . . Feedback Events . | . . . . Feedback Blocked . | . . . . Robot Schematics Acquired . | . . . . Robots Built . | . . . . Authchips . | . . . . Time . | . . . . Total Robot Build Rating . | . . . . Part Schematics Acquired . | . . . . Parts Built . | . . . . Authchips . | . . . . Time . | . . . . Total Part Build Rating . | . . . . Parts Repaired . | . . . . Time . | . . . . Parts Recycled . | . . . . Recycled Matter . | . . . . Retrieved Matter . | . . . . Retrieved Components . | . . . . Parts Scanalyzed . | . . . . Part Schematics Acquired . | . . . . Parts Damaged . | . . . . Bothacking | -11 -10 -10 -10 ------------ Run | Yrd Mat Min Sub Used RIF Installer . | . . . . Robots Hacked . | . . . . Non-combat . | . . . . Combat . | . . . . Robot Hacks Applied . | . . . . Relay Couplers Released . | . . . . Fabnet Peak Effective % . | . . . . Robots Rewired . | . . . . Allies Hacked . | . . . . Hacks Repelled . | . . . . Allies | -11 -10 -10 -10 -------- Run | Yrd Mat Min Sub Total Allies . | . . . . Largest Group . | . . . . Highest-Rated Group . | . . . . Highest-Rated Ally . | . . . . Total Orders . | . . . . Ally Attacks . | . . . . Total Damage . | . . . . Kills . | . . . . Allies Corrupted . | . . . . Allies Melted . | . . . . Intel | -11 -10 -10 -10 ------- Run | Yrd Mat Min Sub Active Infowar (turns) 1538 | . 583 130 825 Structural 1199 | . 244 130 825 Seismic 339 | . 339 . . Robot Analysis Total . | . . . . Derelict Logs Recovered . | . . . . Drone Launches . | . . . . Drone Recoveries . | . . . . Exploration | -11 -10 -10 -10 ------------- Run | Yrd Mat Min Sub Turns Passed 1741 | 38 748 130 825 Spaces Moved 1484 | 35 661 102 686 Core 1 | 1 . . . Treads . | . . . . Legs . | . . . . Wheels 1483 | 34 661 102 686 Hover . | . . . . Flight . | . . . . Fastest Speed 50 | 50 80 100 100 Average Speed 96 | 79 93 100 100 Slowest Speed 100 | 80 100 100 100 Overloaded Moves . | . . . . Propulsion Burnouts . | . . . . Robots Hopped . | . . . . Potential Cave-ins . | . . . . Cave-ins Triggered . | . . . . Exploration Rate (%) 43 | 4 96 29 44 Regions Visited 3 Branch Regions 2 Pre-discovered Areas 2 | . 1 . 1 Known Exits Taken 1 | . . 1 . Unknown Exits Taken 2 | 1 1 . . Scrap Searched 1 | . . . 1 Spaces Dug 12 | . 4 . 8 Terrain Destroyed 74 | . 45 . 29 Melee 12 | . 4 . 8 Projectile . | . . . . AOE 62 | . 41 . 21 Terrain Rammed . | . . . . Walls Destroyed . | . . . . Machines Disabled . | . . . . Actions | -11 -10 -10 -10 --------- Run | Yrd Mat Min Sub Total 1649 | 42 734 118 755 Wait 40 | . 19 10 11 Move 1481 | 34 660 101 686 Hop . | . . . . Pick Up 13 | 2 7 . 4 Fast Attach 8 | 6 2 . . Attach 4 | . 1 1 2 Detach . | . . . . Swap 16 | . 6 . 10 Drop 4 | . 3 . 1 Fire 57 | . 31 6 20 Melee 26 | . 5 . 21 Ram . | . . . . Kick . | . . . . Crush . | . . . . Escape Stasis . | . . . . Rewire . | . . . . Trap . | . . . . Miscellaneous . | . . . . Route ------- -11/Scrapyard -10/Materials (discovered 4 exits: [*Mat x3] / [*Min]) -10/Mines (discovered 3 exits: [*Mat] / Exi / *Sub) -10/Subcaves History --------- Turn | Location | Event 7 | -11/Scrapyard | Discovered new exit (range 16) 39 | -11/Scrapyard | Entered Materials 300 | -10/Materials | Build established: Mutant 343 | -10/Materials | Discovered new exit (range 10) 462 | -10/Materials | Learned 4 Recycling zone layouts 489 | -10/Materials | Learned 2 Storage zone layouts 506 | -10/Materials | Learned location of 1 exit from Recycling 515 | -10/Materials | Learned 2 Storage zone layouts 521 | -10/Materials | Discovered new exit (range 12) 529 | -10/Materials | Discovered new exit (range 9) 532 | -10/Materials | Learned location of 2 exits from Mines 559 | -10/Materials | Learned Storage terminal intel 662 | -10/Materials | Discovered new exit (range 7) 787 | -10/Materials | Entered Mines 788 | -10/Mines | Identified exit to Subcaves 788 | -10/Mines | Identified exit to Exiles 809 | -10/Mines | Discovered new exit (range 13) 917 | -10/Mines | Entered Subcaves 918 | -10/Subcaves | Approached by a straggling Scientist 1502 | -10/Subcaves | Visited Clippyterm 1505 | -10/Subcaves | Learned location of Deep Caves (-7) 1673 | -10/Subcaves | Shifting Twisted Machinery released Sub. Monowheel 1677 | -10/Subcaves | Shifting Twisted Machinery released Spk. Treads 1721 | -10/Subcaves | Core integrity fell below 50% 1727 | -10/Subcaves | Core integrity fell below 20% 1742 | -10/Subcaves | Destroyed by ZR-Q5P(R) with Subdweller Machine Gun Last Messages --------------- 01579_ Com. Wheel destroyed. 5P-JTQ(c): "I think it's somewhere west of here" 01587_ Y-45 Defender destroyed. 01590_ Acquired 30 matter. 01592_ Acquired Hvy. Assault Rifle. 01596_ Lgt. Treads fries itself beyond repair. 5P-JTQ(c): "I think it's somewhere northwest of here" Sub. Monowheel falls loose from the Twisted Machinery. Spk. Treads falls loose from the Twisted Machinery. 01680_ Dropped Sub. Monowheel. 01680_ Acquired Sub. Monowheel. 5P-JTQ(c): "I think it's somewhere northwest of here" 01710_ Com. Wheel destroyed. 01722_ EM Pulse Gun destroyed. 01724_ ZR-Q5P(R) IFF system glitched. 01730_ ZR-Q5P(R) misfires. 01732_ EM Pulse Gun destroyed. 5P-JTQ(c): "I think it's somewhere northwest of here" 01734_ Lgt. Ion Engine destroyed. 01734_ ZR-Q5P(R) suffers critical hit (Destroy). Map ----- +----------------------------------------------------+ | ?????????????????????????????????????????????????? | | ?????????????????????????????????????????????????? | | ?????????????????????????????????????????????????? | | ?????????????????????????????????????????????????? | | ?????????????????????????????????????????????????? | | ?????????????????????????????????????????????????? | | ?????????????????????????????????????????????????? | | ?????????????????????????????????????????????????? | | ?????????????????????????????????????????????????? | | ?????????????????????????????????????????????????? | | ?????????????????????????????????????????????????? | | ?????????????????????????????????????????????????? | | ?????????????????????????????????????????????????? | | ?????????????????????????????????????????????????? | | ?????????????????????????????????????????????????? | | ?????????????????????????????????????????????????? | | ?????????????????????????????????????????????????? | | ?????????????????????????????????????????????????? | | ?????????????????????????????????????????????????? | | ?????????????????????????????????????????????????? | | ?????????????????????????????????????????????????? | | ??????????????????????## ????????????????????????? | | ?????????????????????### ######??????????????????? | | ?????????????????????###"######??????????????????? | | ?????????????????????##"R#"# ###?????????????????? | | ?????????????????????###R@ ""###?????????????????? | | ?????????????????????#### # ""##?????????????????? | | ?????????????????????###### ###?????????????????? | | ?????????????????????## ""##?????????????????? | | ?????????????????????### "" ##?????????????????? | | ?????????????????????####"" "###?????????????????? | | ??????????????????????###= ="####????????????????? | | ???????????????????????### ""###????????????????? | | ?? ????????????????????#### """##????????????????? | | ? ?????????????????????### ##????????????????? | | # ????????????????????#### ##????????????????? | | ## #??????????????????#### ###????????????????# | | # ####???????????????### ####????????????????# | | # ###?????????????##### #####????????????????## | | ? ##????????????##### #####????????????????## | | ?? ##????????????### ######???????????????## | | ## ##?????????##### ###???????????????## | | ### ##????????########## ##???????????????## | | ### ##????????### ##### ###?????????????#### | | ### ###???????## #### ##?################ | | ### ####?????### ### ################# | | ### ########### ### # ##### #### | | ## ######### ### ##### ## | | # ### ##### | | ### # ## | +----------------------------------------------------+ Best States ------------- Heat Dissipation 25 Energy Generation 10 Energy Capacity 125 Matter Stores 300 Matter Capacity 300 Sight Range 16 Terrain Scan Density 10 Evasion (%) 44 Item Schematics ----------------- None Robot Schematics ------------------ None Fabricated ------------ Nothing Repaired ---------- Nothing Alien Tech Used ----------------- None Achievements -------------- None Challenges ------------ None Game ------ Seed WarpHellfireFalx Manual? 0 Play Time 00:21:15 Cumulative 227.3 hours Start 2025.05.13 @ 19:30:20 End 2025.05.13 @ 19:49:01 Sessions 1 Manual Loads 0 Difficulty Rogue Special Mode None Game No. 102 Rogue 59 Adventurer 43 Explorer 0 Win Type - Total 6 Types 4/0/1/0/0/0/0/1/0/0 Lore% 69 Gallery% 66 Achievement% 61 Wizard Run 0 Options --------- Layout 0 ASCII 0 Keyboard 0 Movement Mouse Keybinds 0 Fullscreen 1 Font 24/Smallcaps Map View 76x50 Zoom Use 1% Tactical HUD 1 Map Filters NONE Filters NONE Steam 1 RUN: 5666e6f1-24e1-458d-985f-66f9773887e3